fUST/lending_fUST_20240718
["ID","MTS","AMOUNT","RATE_DAILY","PERIOD"]
[332572185,1721298638725,-386.48189051,0.00017999,2]
[332572186,1721298638735,-500.0,0.00017999,2]
[332572187,1721298638745,-500.0,0.00017999,2]
[332572188,1721298638754,-500.0,0.00017999,2]
[332572189,1721298638763,-500.0,0.00017999,2]
[332572190,1721298638772,-500.0,0.00017999,2]
[332572192,1721298638782,-297.43175259,0.00017999,2]
[332572193,1721298638791,-500.0,0.00017999,2]
[332572194,1721298638800,-500.0,0.00017999,2]
[332572195,1721298638810,-500.0,0.00017999,2]
[332572196,1721298638819,-500.0,0.00017999,2]
[332572197,1721298638829,-255221.10250686,0.00018,3]
[332572208,1721298641008,-215333.09258348,0.00018,3]
[332572262,1721298644051,-5833.49533879,0.00018,3]
[332572293,1721298644812,-522.72119382,0.00018,3]
[332572388,1721298646720,-553.14,0.00018,3]
[332572389,1721298665170,2799.0,0.00025,120]
[332572402,1721299032558,1523.88,0.0002502,120]
[332572434,1721299833422,-166.666666,0.00016438,2]
[332572436,1721299833432,-880.58514988,0.00016682,2]
[332572498,1721299837923,-8775.86554719,0.00016682,2]
[332572500,1721299837934,-2616.6603215,0.00016683,2]
[332572502,1721299837944,-301.8615653,0.00016725,2]
[332572504,1721299837955,-276.87938359,0.00016747,2]
[332572510,1721299837997,-23.12061641,0.00016747,2]
[332572512,1721299838007,-161.416775,0.00016777,2]
[332572514,1721299838017,-166.666666,0.00016823,2]
[332572516,1721299838026,-161.416775,0.00016865,2]
[332572518,1721299838036,-161.416775,0.00016952,2]
[332572520,1721299838046,-161.416775,0.0001704,2]
[332572522,1721299838055,-161.416775,0.00017127,2]
[332572524,1721299838065,-166.666666,0.00017208,2]
[332572526,1721299838075,-161.416775,0.00017215,2]
[332572528,1721299838085,-161.416775,0.00017302,2]
[332572530,1721299838094,-161.416775,0.00017389,2]
[332572532,1721299838103,-161.416775,0.00017477,2]
[332572534,1721299838112,-161.416775,0.00017564,2]
[332572537,1721299838125,-166.666666,0.00017592,2]
[332572540,1721299838134,-161.416775,0.00017652,2]
[332572542,1721299838144,-166.666666,0.00017977,2]
[332572544,1721299838153,-453.83760745,0.0001799,2]
[332572546,1721299838165,-3267.54180325,0.0001799,2]
[332572548,1721299838175,-18808.43100131,0.00018,3]
[332572550,1721299838187,-3225.9586943,0.00018,3]
[332572785,1721299840676,-623.27614039,0.00018,3]
[332572797,1721299841201,-5240.532078,0.00018,3]
[332572799,1721299841212,-19865.45821434,0.00018,3]
[332572882,1721300039358,239.39059324,9.999e-05,2]
[332572883,1721300039386,163.16829098,9.999e-05,2]
[332572884,1721300079334,3779.79413854,9.999e-05,2]
[332572885,1721300099356,154.79103211,0.0001212,2]
[332572886,1721300101415,1624.66124056,9.999e-05,2]
[332572887,1721300106674,1906.85890985,9.999e-05,2]
[332572888,1721300114848,10000.0,0.000225,30]
[332572889,1721300122832,3775.47185418,0.0001212,2]
[332572890,1721300126071,391.80627157,0.0001212,2]
[332572891,1721300132219,516.70894553,9.999e-05,2]
[332572892,1721300133312,10000.0,0.00024,60]
[332572893,1721300158859,243.98961415,0.00014691,2]
[332572894,1721300158914,1269.49482639,0.00014691,2]
[332572899,1721300309183,309.25780362,9.999e-05,2]
[332572902,1721300517529,805.10062101,0.0001212,2]
[332572904,1721300634065,154.79103211,0.00014691,2]
[332572906,1721300658110,155.05188196,9.999e-05,2]
[332572907,1721300685060,300.83092593,0.00014691,2]
[332572978,1721301033729,-166.666666,0.00016465,2]
[332572980,1721301033738,-166.666666,0.00016914,2]
[332572982,1721301033747,-166.666666,0.00017363,2]
[332572984,1721301033757,-147.08484753,0.00017565,2]
[332573391,1721301039010,-4.01816111,0.00017565,2]
[332573393,1721301039020,-5296.9817874,0.00017567,2]
[332573394,1721301039030,-181.69149534,0.00017642,2]
[332573396,1721301039039,-179.39883353,0.0001765,2]
[332573397,1721301039049,-492.90786688,0.0001765,2]
[332573398,1721301039059,-357.12968415,0.00017667,2]
[332573399,1721301039068,-166.666666,0.00017812,2]
[332573400,1721301039078,-300.0,0.00017999,2]
[332573401,1721301039089,-61550.6306586,0.00018,3]
[332573402,1721301039098,-166.666666,0.00018261,2]
[332573403,1721301039108,-346.06073821,0.00018709,2]
[332573404,1721301039118,-166.666666,0.0001871,2]
[332573405,1721301039127,-413.8089224,0.00019,2]
[332573406,1721301039137,-162.013574,0.00019178,2]
[332573407,1721301039146,-164.546732,0.00019178,2]
[332573408,1721301039156,-206.5056545,0.00019205,2]
[332573409,1721301039166,-293.7070141,0.00019205,2]
[332573410,1721301039175,-293.7070141,0.00019205,2]
[332573411,1721301039185,-206.5056545,0.00019205,2]
[332573412,1721301039194,-153.0,0.00019205,2]
[332573413,1721301039204,-206.5056545,0.00019205,2]
[332573414,1721301039216,-306.0,0.00019205,2]
[332573415,1721301039226,-293.7070141,0.00019205,2]
[332573416,1721301039236,-206.5056545,0.00019205,2]
[332573417,1721301039246,-293.7070141,0.00019205,2]
[332573418,1721301039257,-306.0,0.00019205,2]
[332573419,1721301039266,-307.2359707,0.00019205,2]
[332573420,1721301039276,-293.7070141,0.00019205,2]
[332573422,1721301039286,-206.5056545,0.00019205,2]
[332573423,1721301039296,-153.0,0.00019205,2]
[332573425,1721301039306,-206.5056545,0.00019205,2]
[332573427,1721301039316,-587.4140282,0.00019205,2]
[332573429,1721301039326,-206.5056545,0.00019205,2]
[332573431,1721301039336,-206.5056545,0.00019205,2]
[332573433,1721301039346,-420.0,0.00019799,2]
[332573435,1721301039355,-206.5056545,0.00020027,2]
[332573437,1721301039365,-206.5056545,0.00020027,2]
[332573439,1721301039375,-202.6292717,0.00020027,2]
[332573441,1721301039387,-206.3494273,0.00020027,2]
[332573443,1721301039396,-206.5056545,0.00020027,2]
[332573445,1721301039408,-206.5056545,0.00020027,2]
[332573448,1721301039418,-206.5056545,0.00020027,2]
[332573449,1721301039428,-282.4238951,0.0002011,2]
[332573451,1721301039437,-5511.47943235,0.00020243,2]
[332573453,1721301039447,-167.692837,0.0002072,2]
[332573455,1721301039457,-157.015227,0.0002072,2]
[332573458,1721301039466,-3623.85850765,0.00020912,2]
[332573460,1721301039477,-252.67388574,0.00021002,5]
[332573462,1721301039487,-45615.5237772,0.00021002,3]
[332573464,1721301039498,-2351.25355626,0.00021012,2]
[332573538,1721301040434,-346.06073821,0.0001826,2]
[332573539,1721301040443,-27648.74644374,0.00021012,2]
[332573540,1721301040459,-293.68788523,0.00021069,2]
[332573541,1721301040468,-151.0,0.00021069,2]
[332573542,1721301040478,-3623.85850764,0.0002107,2]
[332573543,1721301040488,-326.06682903,0.00021095,2]
[332573544,1721301040501,-108.93317097,0.00021095,2]
[332573545,1721301040511,-390.810717,0.00021096,2]
[332573546,1721301040522,-172.238593,0.00021096,2]
[332573547,1721301040531,-58.26793561,0.00021199,2]
[332573674,1721301268150,1625.91056721,0.0001,2]
[332573675,1721301269081,1476.25165056,9.999e-05,2]
[332573677,1721301323999,441.05855045,0.00015,2]
[332573678,1721301326768,196.09695636,9.999e-05,2]
[332573679,1721301352665,163.59936671,9.999e-05,2]
[332573691,1721301664035,309.27320796,0.0001212,2]
[332573741,1721302233429,-166.666666,0.00017431,2]
[332573742,1721302233439,-158.388262,0.00017722,2]
[332573743,1721302233449,-166.666666,0.00017907,2]
[332573744,1721302233460,-5296.981787,0.00018339,2]
[332573745,1721302233471,-166.666666,0.00018382,2]
[332573746,1721302233482,-300.0,0.00018485,2]
[332573747,1721302233492,-300.0,0.00018485,2]
[332573748,1721302233502,-2056.89267129,0.00018485,2]
[332573749,1721302233512,-5296.981787,0.00018486,2]
[332573750,1721302233521,-5296.981787,0.00018635,2]
[332573751,1721302233533,-158.388262,0.00018646,2]
[332573752,1721302233543,-206.5056545,0.000187,2]
[332573753,1721302233553,-2560.89561156,0.0001871,2]
[332573754,1721302233564,-2174.3151046,0.00018711,2]
[332573755,1721302233576,-189.15,0.00018792,3]
[332573756,1721302233585,-567.48,0.00018792,3]
[332573757,1721302233595,-44104.828214,0.00018792,2]
[332573758,1721302233606,-19170.53141999,0.00018802,2]
[332573759,1721302233624,-1771.8042138,0.00018802,2]
[332573778,1721302239294,-5056.55402811,0.00018802,2]
[332573780,1721302239306,-106315.5949801,0.00018802,2]
[332573782,1721302239315,-406.98838269,0.00018811,2]
[332573784,1721302239324,-500.0,0.00018811,2]
[332573785,1721302239335,-500.0,0.00018811,2]
[332573786,1721302239344,-500.0,0.00018811,2]
[332573787,1721302239354,-500.0,0.00018811,2]
[332573788,1721302239365,-280.72933398,0.00018811,2]
[332573789,1721302239374,-500.0,0.00018811,2]
[332573790,1721302239383,-500.0,0.00018811,2]
[332573791,1721302239393,-500.0,0.00018811,2]
[332573792,1721302239402,-274.06454704,0.00018811,2]
[332573793,1721302239411,-500.0,0.00018811,2]
[332573794,1721302239420,-500.0,0.00018811,2]
[332573795,1721302239430,-500.0,0.00018811,2]
[332573796,1721302239439,-500.0,0.00018811,2]
[332573797,1721302239448,-500.0,0.00018811,2]
[332573798,1721302239457,-500.0,0.00018811,2]
[332573799,1721302239467,-173.72027386,0.00018811,2]
[332573800,1721302239476,-500.0,0.00018811,2]
[332573801,1721302239485,-457.7048717,0.00018811,2]
[332573802,1721302239495,-350.0,0.00018811,2]
[332573803,1721302239504,-500.0,0.00018811,2]
[332573804,1721302239513,-300.0,0.00018811,2]
[332573805,1721302239522,-500.0,0.00018811,2]
[332573806,1721302239533,-249.95551287,0.00018811,2]
[332573807,1721302239543,-166509.21567379,0.00018812,2]
[332573808,1721302239552,-166.666666,0.00018857,2]
[332573809,1721302239562,-306.0,0.000189,2]
[332573810,1721302239575,-774.41565549,0.000189,2]
[332573811,1721302239584,-306.0,0.00019,2]
[332573812,1721302239593,-151.0,0.00019006,2]
[332573813,1721302239603,-151.0,0.00019006,2]
[332573814,1721302239613,-151.0,0.00019006,2]
[332573815,1721302239623,-151.0,0.00019006,2]
[332573816,1721302239634,-44104.828214,0.00019006,2]
[332573817,1721302239644,-44104.828214,0.00019107,2]
[332573818,1721302239654,-151.0,0.00019107,2]
[332573819,1721302239664,-151.0,0.00019107,2]
[332573820,1721302239673,-151.0,0.00019107,2]
[332573821,1721302239682,-151.0,0.00019107,2]
[332573822,1721302239691,-5296.981787,0.00019156,2]
[332573823,1721302239700,-5296.981787,0.00019266,2]
[332573824,1721302239709,-166.666666,0.00019332,2]
[332573825,1721302239719,-2174.31510458,0.00019392,2]
[332573826,1721302239728,-5296.981787,0.00019599,2]
[332573827,1721302239738,-357.1296841,0.00019721,2]
[332573828,1721302239747,-166.666666,0.00019807,2]
[332573829,1721302239756,-5296.981787,0.00019828,2]
[332573830,1721302239767,-357.1296841,0.00019987,2]
[332573831,1721302239776,-10238.88332393,0.0002,5]
[332573832,1721302239786,-344413.80896353,0.0002,2]
[332573833,1721302240429,-31049.62040171,0.0002,2]
[332574110,1721302246328,-14802.61894832,0.0002,2]
[332574565,1721302653590,474.06142747,9.999e-05,2]
[332574566,1721302796758,156.00050148,0.0001212,2]
[332574567,1721302832977,1398.0,0.000225,30]
[332574568,1721302851261,-154.96707353,0.00017763,2]
[332574569,1721302851286,-164.096168,0.00017764,2]
[332574570,1721302860570,154.79103211,0.0001212,4]
[332574571,1721302872774,201.46090254,0.00014691,2]
[332574572,1721302874361,1236.0,0.000225,31]
[332574573,1721302886814,335.31697917,9.999e-05,2]
[332574574,1721302919851,250.0,0.00017892,2]
[332574575,1721302963644,154.79103211,0.00017892,4]
[332574576,1721303006732,500.45887792,0.00017999,2]
[332574577,1721303023642,190.41793578,0.00017892,4]
[332574578,1721303044499,166.666666,0.00017686,2]
[332574591,1721303333439,164.096168,0.00017915,2]
[332575180,1721303440742,-166.666666,0.00018168,2]
[332575181,1721303440752,-300.0,0.00018381,2]
[332575182,1721303440762,-22814.2062569,0.00018382,2]
[332575183,1721303440772,-166.666666,0.0001865,2]
[332575184,1721303440781,-357.1296841,0.00019036,2]
[332575185,1721303440791,-5296.981788,0.00019108,2]
[332575186,1721303440801,-166.666666,0.00019132,2]
[332575187,1721303440811,-162.013574,0.00019178,2]
[332575188,1721303440821,-357.1296841,0.00019229,2]
[332575189,1721303440831,-2062.15941661,0.00019448,2]
[332575190,1721303440844,-1318.84503557,0.00019448,2]
[332575303,1721303647482,1857.05808567,9.999e-05,2]
[332575304,1721303687913,166.666666,0.00017555,2]
[332575306,1721304156475,5118.68848857,0.00017433,2]
[332575307,1721304156853,5118.68848857,0.00017783,2]
[332575308,1721304157471,2301.83543603,0.00017913,2]
[332575350,1721304631721,-166.666666,0.00017453,2]
[332575352,1721304631730,-163.576048,0.00017531,2]
[332575354,1721304631739,-320.25728601,0.00017563,2]
[332575356,1721304631750,-484.83082982,0.00017563,2]
[332575359,1721304631762,-1000.0,0.00017563,2]
[332575661,1721304637784,-485.51656291,0.00017563,2]
[332575662,1721304637794,-194.444448,0.00017662,2]
[332575663,1721304637804,-3000.0,0.0001777,2]
[332575664,1721304637814,-166.666666,0.00017928,2]
[332575665,1721304637823,-300.0,0.00017961,2]
[332575666,1721304637833,-9388.0777534,0.00017962,2]
[332575667,1721304637843,-194.444448,0.00018122,2]
[332575668,1721304637852,-357.1296841,0.00018191,2]
[332575669,1721304637862,-166.666666,0.00018404,2]
[332575670,1721304637872,-4483.09046273,0.00018418,2]
[332575671,1721304637882,-357.1296841,0.00018423,2]
[332575672,1721304637891,-250.0,0.00018565,2]
[332575673,1721304637901,-150.0,0.00018574,2]
[332575674,1721304637910,-194.444448,0.00018582,2]
[332575675,1721304637922,-4483.09046273,0.0001884,2]
[332575676,1721304637933,-357.1296841,0.00018847,2]
[332575677,1721304637944,-166.666666,0.0001888,2]
[332575678,1721304637955,-151.50895514,0.00018888,2]
[332575679,1721304637967,-798.95625778,0.000189,2]
[332575680,1721304637978,-357.1296844,0.00018923,2]
[332575681,1721304637987,-346.06073821,0.0001899,2]
[332575682,1721304637997,-346.06073821,0.0001899,2]
[332575683,1721304638007,-4483.09046273,0.00018994,2]
[332575684,1721304638017,-250.0,0.00019041,2]
[332575685,1721304638026,-197.816665,0.00019178,2]
[332575686,1721304638035,-550.0,0.00019178,2]
[332575687,1721304638045,-166.666666,0.00019356,2]
[332575688,1721304638055,-306.0,0.00019452,2]
[332575689,1721304638065,-500.45887792,0.00019515,2]
[332575690,1721304638075,-4483.09046273,0.00019516,2]
[332575691,1721304638085,-166.666666,0.00019832,2]
[332575692,1721304638095,-224.478313,0.0001989,2]
[332575693,1721304638104,-306.0,0.0001989,2]
[332575694,1721304638114,-293.7070141,0.0001989,2]
[332575695,1721304638125,-153.0,0.0001989,2]
[332575696,1721304638135,-293.7070141,0.0001989,2]
[332575697,1721304638145,-3046.16036003,0.000199,2]
[332575698,1721304638154,-4823.80902105,0.00019929,5]
[332575699,1721304638164,-4483.09046273,0.00019929,2]
[332575700,1721304638174,-227.85498573,0.00019989,2]
[332575701,1721304638184,-184.03299105,0.00019989,2]
[332575702,1721304638193,-500.0,0.00019989,2]
[332575703,1721304638203,-41236.0068444,0.0001999,2]
[332575704,1721304638212,-395.58,0.0001999,3]
[332575705,1721304638222,-197.79,0.0001999,3]
[332575706,1721304638231,-593.39,0.0001999,3]
[332575707,1721304638240,-332.45239118,0.0002,2]
[332575708,1721304638250,-6879.79283946,0.0002,2]
[332575710,1721304638259,-13400.71073232,0.0002,2]
[332575712,1721304638269,-4483.09046277,0.00020108,2]
[332575713,1721304638278,-435.0,0.00020149,2]
[332575715,1721304638287,-294.48751517,0.00020273,2]
[332575716,1721304638297,-306.0,0.00020274,2]
[332575718,1721304638306,-3046.16036001,0.00020278,2]
[332575719,1721304638317,-3046.16036001,0.00020657,2]
[332575720,1721304638331,-213.254361,0.0002072,2]
[332575721,1721304638340,-246.112373,0.0002072,2]
[332575722,1721304638349,-41236.0068444,0.00020982,3]
[332575723,1721304638360,-299.58099341,0.00021,2]
[332575724,1721304638369,-25209.3809846,0.00021002,3]
[332575725,1721304638383,-8377.54254476,0.00021002,3]
[332575745,1721304642850,-609.4499428,0.00021002,3]
[332575749,1721304643546,-1750.05485771,0.00021002,3]
[332575750,1721304643561,-4674.24071065,0.00021002,3]
[332575767,1721304782144,346.06073821,9.999e-05,2]
[332575768,1721304817419,206.39389145,0.0001212,2]
[332575769,1721304972850,277.45179803,0.00014691,2]
[332575770,1721305349703,154.92966057,9.999e-05,2]
[332575771,1721305404390,1609.40940753,0.0001,2]
[332575772,1721305482356,402.67453528,0.00015,2]
[332575773,1721305496923,283.37630814,0.00012121,2]
[332575778,1721305644125,154.79103211,0.00014692,2]
[332575788,1721305706679,10014.75485434,0.000125,2]
[332575789,1721305718556,4852.31590902,0.000139,2]
[332575790,1721305729933,11303.81224863,0.00014,2]
[332575791,1721305729960,18020.42004375,0.00014,2]
[332575792,1721305730302,450.36914878,0.0001,2]
[332576053,1721305838040,-3134.95523253,0.00017562,2]
[332576054,1721305838050,-166.666666,0.00018369,2]
[332576055,1721305838059,-257.1406777,0.00018474,2]
[332576056,1721305838068,-4223.9271398,0.00018474,2]
[332576057,1721305838078,-166.666666,0.0001887,2]
[332576058,1721305838090,-166.666666,0.00019371,2]
[332576059,1721305838100,-166.666666,0.00019872,2]
[332576060,1721305838109,-1502.12053054,0.00019899,2]
[332576061,1721305838119,-1218.46414402,0.00019899,2]
[332576062,1721305838129,-1218.464144,0.0001995,2]
[332576063,1721305838138,-197.79,0.0001999,3]
[332576064,1721305838147,-593.37,0.0001999,3]
[332576065,1721305838156,-166.85527227,0.00019999,2]
[332576066,1721305838166,-202.20035161,0.00019999,2]
[332576067,1721305838175,-229.83569153,0.00019999,2]
[332576068,1721305838184,-195.98396901,0.00019999,2]
[332576069,1721305838194,-500.0,0.00019999,2]
[332576070,1721305838204,-504.1604299,0.00019999,2]
[332576071,1721305838213,-500.0,0.00019999,2]
[332576072,1721305838223,-222.23859311,0.00019999,2]
[332576073,1721305838232,-500.0,0.00019999,2]
[332576074,1721305838241,-500.0,0.00019999,2]
[332576075,1721305838251,-500.0,0.00019999,2]
[332576076,1721305838261,-500.0,0.00019999,2]
[332576077,1721305838271,-500.0,0.00019999,2]
[332576078,1721305838281,-500.0,0.00019999,2]
[332576079,1721305838290,-500.0,0.00019999,2]
[332576080,1721305838300,-500.0,0.00019999,2]
[332576081,1721305838309,-500.0,0.00019999,2]
[332576082,1721305838319,-500.0,0.00019999,2]
[332576083,1721305838328,-301.07767878,0.00019999,2]
[332576084,1721305838340,-500.0,0.00019999,2]
[332576085,1721305838350,-500.0,0.00019999,2]
[332576086,1721305838359,-500.0,0.00019999,2]
[332576087,1721305838369,-41923.53551498,0.0002,5]
[332576088,1721305838378,-2411.90451052,0.0002,5]
[332576089,1721305838388,-997.55207766,0.0002,2]
[332576090,1721305838397,-287341.5793496,0.0002,2]
[332576098,1721305843052,-532.63750519,0.000189,2]
[332576099,1721305843062,-10391.71330748,0.0002,2]
[332576101,1721305843537,-7077.2739508,0.0002,2]
[332576137,1721306834335,353.85423939,0.00015,2]
[332576198,1721307038393,-846.32958196,0.00017912,2]
[332576200,1721307038403,-166.666666,0.00018267,2]
[332576202,1721307038413,-2988.0718097,0.00018663,2]
[332576204,1721307038422,-166.666666,0.00018765,2]
[332576206,1721307038432,-187.5,0.00018815,2]
[332576208,1721307038441,-355.09167012,0.000189,2]
[332576210,1721307038451,-187.5,0.00019142,2]
[332576213,1721307038460,-197.816665,0.00019178,2]
[332576216,1721307038470,-166.666666,0.00019263,2]
[332576218,1721307038480,-359.2084777,0.00019458,2]
[332576220,1721307038490,-187.5,0.00019469,2]
[332576222,1721307038499,-166.666666,0.00019761,2]
[332576224,1721307038510,-187.5,0.00019796,2]
[332576226,1721307038520,-359.20847771,0.00019897,2]
[332576228,1721307038529,-731.0784864,0.000199,2]
[332576230,1721307038539,-2071.54224762,0.0001994,2]
[332576232,1721307038549,-731.0784864,0.00019943,2]
[332576234,1721307038558,-3286.6987002,0.00019978,2]
[332576236,1721307038567,-500.0,0.00019979,2]
[332576238,1721307038578,-500.0,0.00019979,2]
[332576240,1721307038587,-277.23392603,0.00019979,2]
[332576241,1721307038597,-245.07886,0.00019979,2]
[332576243,1721307038607,-522.16797467,0.00019979,2]
[332576245,1721307038616,-177605.67953,0.0001998,2]
[332576247,1721307038625,-731.0784864,0.00019986,2]
[332576249,1721307038635,-166.85527227,0.00019989,2]
[332576251,1721307038645,-229.83569153,0.00019989,2]
[332576253,1721307038654,-500.0,0.00019989,2]
[332576255,1721307038663,-504.1604299,0.00019989,2]
[332576257,1721307038672,-500.0,0.00019989,2]
[332576259,1721307038682,-500.0,0.00019989,2]
[332576261,1721307038691,-202.20035161,0.00019989,2]
[332576263,1721307038700,-301.07767878,0.00019989,2]
[332576265,1721307038709,-500.0,0.00019989,2]
[332576267,1721307038719,-500.0,0.00019989,2]
[332576269,1721307038729,-222.23859311,0.00019989,2]
[332576271,1721307038738,-500.0,0.00019989,2]
[332576273,1721307038748,-500.0,0.00019989,2]
[332576275,1721307038757,-500.0,0.00019989,2]
[332576277,1721307038766,-500.0,0.00019989,2]
[332576279,1721307038775,-500.0,0.00019989,2]
[332576281,1721307038785,-500.0,0.00019989,2]
[332576282,1721307038794,-500.0,0.00019989,2]
[332576283,1721307038803,-500.0,0.00019989,2]
[332576284,1721307038812,-500.0,0.00019989,2]
[332576285,1721307038823,-500.0,0.00019989,2]
[332576286,1721307038833,-35521.135906,0.0001999,2]
[332576287,1721307038842,-71042.271812,0.0001999,2]
[332576288,1721307038853,-41923.53551498,0.0002,5]
[332576289,1721307038862,-2411.90451052,0.0002,5]
[332576290,1721307038871,-6879.79283946,0.0002,2]
[332576291,1721307038881,-11449.79563323,0.0002,2]
[332576292,1721307038890,-124304.1777666,0.0002,2]
[332576293,1721307038903,-416.28871668,0.0002,2]
[332576299,1721307040515,-142803.12023453,0.0002,2]
[332576416,1721307048097,-236.72778008,0.000189,2]
[332576418,1721307048109,-246.95302333,0.0001999,3]
[332576434,1721308085919,456.669045,9.999e-05,2]
[332576643,1721308240627,-157.81852006,0.000189,2]
[332576644,1721308240638,-166.666666,0.00019239,2]
[332576645,1721308240648,-1021.27612379,0.00019702,2]
[332576646,1721308240659,-166.666666,0.00019764,2]
[332576647,1721308240669,-3018.29664649,0.0002,2]
[332576649,1721308240681,-1473.00074673,0.0002,2]
[332576748,1721309406963,-166.666666,0.00018424,2]
[332576750,1721309406995,-150.0,0.000189,2]
[332576752,1721309407024,-166.666666,0.00018926,2]
[332576754,1721309407054,-194.26141121,0.00019178,2]
[332576758,1721309407233,-3.55525379,0.00019178,2]
[332576759,1721309407266,-166.666666,0.00019428,2]
[332577036,1721309438645,-153.0,0.000195,2]
[332577037,1721309438654,-153.0,0.00019678,2]
[332577038,1721309438664,-153.0,0.00019678,2]
[332577039,1721309438673,-153.0,0.00019878,2]
[332577040,1721309438683,-153.0,0.00019878,2]
[332577041,1721309438693,-300.0,0.00019899,2]
[332577043,1721309438702,-153.0,0.000199,2]
[332577045,1721309438712,-153.0,0.000199,2]
[332577047,1721309438722,-293.6566525,0.000199,2]
[332577048,1721309438731,-153.0,0.000199,2]
[332577049,1721309438741,-153.0,0.000199,2]
[332577050,1721309438754,-153.0,0.000199,2]
[332577051,1721309438765,-153.0,0.000199,2]
[332577052,1721309438774,-153.0,0.000199,2]
[332577053,1721309438784,-153.0,0.000199,2]
[332577054,1721309438798,-153.0,0.000199,2]
[332577055,1721309438807,-153.0,0.000199,2]
[332577056,1721309438816,-153.0,0.000199,2]
[332577057,1721309438826,-2193.2354592,0.000199,2]
[332577058,1721309438837,-166.666666,0.00019931,2]
[332577059,1721309438846,-302.87,0.0001998,3]
[332577060,1721309438856,-151.43,0.0001998,3]
[332577061,1721309438866,-454.33,0.0001998,3]
[332577062,1721309438876,-5903.73624957,0.00019989,5]
[332577063,1721309438886,-160.88498407,0.00019989,2]
[332577064,1721309438896,-500.0,0.00019989,2]
[332577065,1721309438906,-352.91230093,0.00019989,2]
[332577066,1721309438915,-500.0,0.00019989,2]
[332577067,1721309438925,-205.56701518,0.00019989,2]
[332577068,1721309438934,-500.0,0.00019989,2]
[332577069,1721309438943,-500.0,0.00019989,2]
[332577070,1721309438953,-500.0,0.00019989,2]
[332577072,1721309438963,-500.0,0.00019989,2]
[332577074,1721309438973,-500.0,0.00019989,2]
[332577076,1721309438982,-500.0,0.00019989,2]
[332577078,1721309438992,-500.0,0.00019989,2]
[332577079,1721309439002,-500.0,0.00019989,2]
[332577080,1721309439011,-301.07767878,0.00019989,2]
[332577082,1721309439023,-500.0,0.00019989,2]
[332577084,1721309439033,-500.0,0.00019989,2]
[332577086,1721309439042,-500.0,0.00019989,2]
[332577088,1721309439054,-500.0,0.00019989,2]
[332577090,1721309439063,-500.0,0.00019989,2]
[332577091,1721309439072,-210.75437515,0.00019989,2]
[332577092,1721309439082,-11019.33863489,0.0001999,2]
[332577093,1721309439095,-258648.28762311,0.0001999,2]
[332577094,1721309439104,-41923.53551498,0.0002,5]
[332577095,1721309439114,-997.55207766,0.0002,2]
[332577096,1721309439123,-1342.19794557,0.0002,2]
[332577097,1721309439134,-294.80692264,0.0002,2]
[332577098,1721309439144,-183.68040243,0.0002,2]
[332577147,1721309442652,-117732.20803642,0.0002,2]
[332577246,1721309443753,-277.21615124,0.0002,2]
[332577247,1721309443766,-2808.0949702,0.0002,2]
[332577391,1721309447883,-29945.6306891,0.0002,2]
[332577393,1721309447895,-259823.01993553,0.0002,2]
[332577395,1721309447905,-11449.79563323,0.0002,2]
[332577398,1721309447914,-6879.79283946,0.0002,2]
[332577401,1721309447924,-150.112233,0.0002,4]
[332577404,1721309447933,-153.0,0.00020186,2]
[332577406,1721309447943,-150.112233,0.000202,3]
[332577408,1721309447952,-306.0,0.00020274,2]
[332577409,1721309447963,-206.4665977,0.00020274,2]
[332577411,1721309447973,-385.9910749,0.00020274,2]
[332577413,1721309447982,-150.112233,0.000203,3]
[332577415,1721309447991,-166.666666,0.00020433,2]
[332577417,1721309448000,-150.112233,0.000205,5]